Cogmind - Beta 11 @@@ ROGUE MODE // 2022.03.20 @ 19:06:35 Player: SURFACESEEKER Result: Destroyed by G-34 Mercenary with Small Laser Performance ------------- Evolutions (0) 0 Regions Visited (1) 200 Robots Destroyed (7) 35 Value Destroyed (97) 97 Prototype IDs (0) 0 Alien Tech Used (0) 0 Bonus (0) 0 TOTAL SCORE: 332 Bonus ------- None Cogmind --------- Core Integrity 0/250 Matter 295/300 Energy 100/100 System Corruption 0% Temperature Cool (12) Movement Core (150) Ox2 Location -10/Materials Parts ------- > --- POWER (1) -------- (None) > --- PROPULSION (2) --- (None) > --- UTILITY (2) ------ Small Storage Unit > --- WEAPON (2) ------- Hammer > --- INVENTORY (8) ---- Terrain Scanner Improved Terrain Scanner Terrain Scan Processor Seismic Detector Peak State ------------ > --- POWER ------------ Light Ion Engine > --- PROPULSION ------- Aluminum Leg Aluminum Leg > --- UTILITY ---------- Small Storage Unit Improved Terrain Scanner > --- WEAPON ----------- Light Assault Rifle Light Assault Rifle > --- INVENTORY -------- (None) [Rating: 9] Favorites ----------- Power Light Ion Engine Engine Light Ion Engine Propulsion Aluminum Leg Treads Light Treads Leg Aluminum Leg Wheel Wheel Utility Small Storage Unit Device Improved Terrain Scanner Storage Small Storage Unit Weapon Light Assault Rifle Energy Gun EM Pulse Gun Ballistic Gun Light Assault Rifle Impact Weapon Hammer Build | -11 -10 ------- Run | Scr Mat Slots Evolved . | . . Power . | . . Propulsion . | . . Utility . | . . Weapon . | . . Parts Attached 15 | 7 8 Power 3 | 1 2 Engine 3 | 1 2 Core . | . . Reactor . | . . Propulsion 5 | 2 3 Treads 1 | . 1 Leg 2 | 2 . Wheel 2 | . 2 Hover . | . . Flight . | . . Utility 3 | 2 1 Device 2 | 1 1 Storage 1 | 1 . Processor . | . . Hackware . | . . Protection . | . . Artifact . | . . Weapon 4 | 2 2 Energy Gun 1 | . 1 Energy Cannon . | . . Ballistic Gun 2 | 2 . Ballistic Cannon . | . . Launcher . | . . Special Weapon . | . . Impact Weapon 1 | . 1 Slashing Weapon . | . . Piercing Weapon . | . . Special Melee Weapon . | . . Unidentified Prototypes . | . . Parts Lost 11 | . 11 Power 3 | . 3 Propulsion 5 | . 5 Utility . | . . Weapon 3 | . 3 Highest Loss Streak 6 | . 6 To Critical Strikes . | . . Average Slot Usage (%) 69 | . 69 Engine 7 | . 7 Treads 3 | . 3 Leg 11 | . 11 Wheel 7 | . 7 Device 8 | . 8 Storage 14 | . 14 Energy Gun 1 | . 1 Ballistic Gun 13 | . 13 Impact Weapon 1 | . 1 Naked Turns . | . . Heaviest Build 11 | 11 11 Greatest Support 26 | 20 26 Greatest Overweight (x) 3 | . 3 Average Overweight (x) . | . . Largest Inventory Capacity 8 | 8 8 Average Capacity 7 | 7 8 Most Carried 4 | 4 4 Average Carried 2 | 1 3 Final Capacity 8 | 8 8 Final Carried 4 | 4 4 Class Distribution -------------------- 100% | Mutant Dominant Class ---------------- Mutant | -10/Materials Resources | -11 -10 ----------- Run | Scr Mat Matter Collected 329 | 252 77 Remotely . | . . Salvage Created 205 | 36 169 Parts 18 | 5 13 Haulers Intercepted . | . . Recyclers Shooed . | . . Parts Field Recycled . | . . Retrieved Matter . | . . Parts Self-Destructed . | . . Prevented . | . . Kills | -11 -10 ------- Run | Scr Mat Combat Hostiles Destroyed 4 | . 4 Guns 4 | . 4 Classes Destroyed 4 | 1 3 Tunneler 2 | 2 . Recycler 1 | . 1 Swarmer 3 | . 3 Grunt 1 | . 1 Best Kill Streak 4 | 2 4 Combat Bots Only 3 | . 3 Max Kills in Single Turn 1 | 1 1 Gunslinging . | . . Exploded . | . . Melee . | . . Uniques/NPCs Destroyed . | . . Combat | -11 -10 -------- Run | Scr Mat Damage Taken 1167 | . 1167 Core 259 | . 259 Absorbed by Shields . | . . Core Remaining (%) 100 | 100 . Volleys Fired 33 | 7 26 Largest 2 | 2 2 Hottest 60 | 40 60 Shots Fired 60 | 14 46 Gun 60 | 14 46 Cannon . | . . Launcher . | . . Special . | . . Kinetic 51 | 14 37 Thermal . | . . Explosive . | . . Electromagnetic 9 | . 9 Robot Hit Streak 8 | 7 8 Robot Miss Streak 2 | 1 2 Penetration Max . | . . Secondary Targets . | . . Shots Hit Robots 40 | 9 31 Core Hits 17 | 5 12 Critical Kills . | . . Critical Parts Destroyed . | . . Critical Strikes 1 | . 1 Corrupt 1 | . 1 Melee Attacks 4 | . 4 Impact 4 | . 4 Slashing . | . . Piercing . | . . Sneak Attacks . | . . Combat Hostiles . | . . Follow-up Attacks . | . . Damage Inflicted 418 | 86 332 Guns 384 | 86 298 Cannons . | . . Explosions . | . . Melee 18 | . 18 Ramming 16 | . 16 Kinetic 305 | 86 219 Thermal . | . . Explosive . | . . Electromagnetic 79 | . 79 Impact 18 | . 18 Slashing . | . . Piercing . | . . Highest Corruption . | . . Average Corruption . | . . Corruption Purged . | . . Corruption Blocked . | . . Overload Shots . | . . Overflow Damage . | . . Projectiles . | . . Explosions . | . . Melee . | . . Knockbacks . | . . Impact . | . . Kinetic . | . . Secondary . | . . Self-Inflicted Damage 1 | . 1 Shots . | . . Rammed 9 | . 9 Targets Rammed 13 | . 13 Kicked 4 | . 4 Crushed . | . . Highest Temperature 38 | . 38 Average Temperature 15 | . 15 Received Heat Transfer 525 | . 525 Siege Activations . | . . Robots Corrupted . | . . Combat Hostiles . | . . Parts Fried . | . . Impact Corruptions . | . . Robots Melted . | . . Combat Hostiles . | . . Parts Melted . | . . Heat Transferred . | . . Parts Sabotaged . | . . Parts Stolen . | . . Parts Stripped . | . . Power Chain Reactions . | . . Missiles Intercepted . | . . Alert | -11 -10 ------- Run | Scr Mat Peak Influence 126 | 10 126 Initial 6 | . 6 Average 41 | 5 67 Maximum Alert Level . | . . Low Security (%) 100 | 100 100 Level 1 . | . . Level 2 . | . . Level 3 . | . . Level 4 . | . . Level 5 . | . . High Security . | . . Max Security . | . . Squads Dispatched 1 | . 1 Investigation 1 | . 1 Extermination . | . . Reinforcement . | . . Assault . | . . Garrison . | . . Intercept . | . . Searches Triggered . | . . Construction Impeded . | . . Haulers Reinforced . | . . Active Scanning Responses . | . . Cargo Convoy Interrupts . | . . Stealth | -11 -10 --------- Run | Scr Mat Distress Signals 2 | . 2 Communications Jammed . | . . Distress Signals . | . . Times Spotted 9 | . 9 Peak Tracking Total 8 | . 8 Tactical Retreats . | . . Traps | -11 -10 ------- Run | Scr Mat Traps Triggered 1 | . 1 Indirectly . | . . Trap Hack Attempts . | . . Triggered . | . . Disarmed . | . . Reprogrammed . | . . Reused . | . . Traps Extracted . | . . Installed . | . . Triggered . | . . Machines | -11 -10 ---------- Run | Scr Mat Machines Disabled . | . . Max in Single Turn . | . . Machines Sabotaged . | . . Garrisons Compromised . | . . Overloaded Fab Kills . | . . Hacking | -11 -10 --------- Run | Scr Mat Machines Accessed 1 | . 1 Terminals . | . . Fabricators . | . . Repair Stations . | . . Recycling Units 1 | . 1 Scanalyzers . | . . Garrison Access . | . . Total Hacks 2 | . 2 Successful 2 | . 2 Failed . | . . Catastrophic . | . . Database Lockouts . | . . Manual 1 | . 1 Terminals . | . . Fabricators . | . . Repair Stations . | . . Recycling Units 2 | . 2 Scanalyzers . | . . Garrison Access . | . . Terminal Hacks . | . . Fabricator Hacks . | . . Repair Station Hacks . | . . Recycling Unit Hacks 1 | . 1 Report Inventory 1 | . 1 Scanalyzer . | . . Garrison Access Hacks . | . . Unauthorized Hacks 1 | . 1 Terminals . | . . Fabricators . | . . Repair Stations . | . . Recycling Units 1 | . 1 Tunnel 1 | . 1 Scanalyzers . | . . Garrison Access . | . . Data Cores Recovered . | . . Used . | . . Hacking Detections . | . . Full Trace Events . | . . Feedback Events . | . . Feedback Blocked . | . . Robot Schematics Acquired . | . . Robots Built . | . . Authchips . | . . Time . | . . Total Robot Build Rating . | . . Part Schematics Acquired . | . . Parts Built . | . . Authchips . | . . Time . | . . Total Part Build Rating . | . . Parts Repaired . | . . Time . | . . Parts Recycled . | . . Recycled Matter . | . . Retrieved Matter . | . . Retrieved Components . | . . Parts Scanalyzed . | . . Part Schematics Acquired . | . . Parts Damaged . | . . Bothacking | -11 -10 ------------ Run | Scr Mat Used RIF Installer . | . . Robots Hacked . | . . Non-combat . | . . Combat . | . . Robot Hacks Applied . | . . Relay Couplers Released . | . . Fabnet Peak Effective % . | . . Robots Rewired . | . . Allies Hacked . | . . Hacks Repelled . | . . Allies | -11 -10 -------- Run | Scr Mat Total Allies . | . . Largest Group . | . . Highest-Rated Group . | . . Highest-Rated Ally . | . . Total Orders . | . . Ally Attacks . | . . Total Damage . | . . Kills . | . . Allies Corrupted . | . . Allies Melted . | . . Intel | -11 -10 ------- Run | Scr Mat Robot Analysis Total . | . . Derelict Logs Recovered . | . . Drone Launches . | . . Drone Recoveries . | . . Exploration | -11 -10 ------------- Run | Scr Mat Turns Passed 380 | 161 219 Spaces Moved 209 | 115 94 Core 21 | 17 4 Treads 20 | . 20 Legs 132 | 98 34 Wheels 36 | . 36 Hover . | . . Flight . | . . Fastest Speed 50 | 50 80 Average Speed 114 | 109 119 Slowest Speed 200 | 120 200 Overloaded Moves . | . . Propulsion Burnouts . | . . Robots Hopped . | . . Cave-ins Triggered . | . . Exploration Rate (%) 11 | 5 18 Regions Visited 1 Branch Regions . Pre-discovered Areas 1 | . 1 Known Exits Taken . | . . Unknown Exits Taken 1 | 1 . Scrap Searched . | . . Spaces Dug . | . . Terrain Destroyed . | . . Melee . | . . Projectile . | . . AOE . | . . Terrain Rammed . | . . Walls Destroyed . | . . Machines Disabled . | . . Actions | -11 -10 --------- Run | Scr Mat Total 284 | 136 148 Wait 1 | 1 . Move 208 | 114 94 Hop . | . . Pick Up 8 | 7 1 Fast Attach 9 | 4 5 Attach 6 | 3 3 Detach 2 | . 2 Swap . | . . Drop . | . . Fire 33 | 7 26 Melee 4 | . 4 Ram 1 | . 1 Kick 4 | . 4 Crush 8 | . 8 Escape Stasis . | . . Rewire . | . . Trap . | . . Miscellaneous . | . . Route ------- -11/Scrapyard -10/Materials History --------- Turn | Location | Event 8 | -11/Scrapyard | Discovered new exit (range 15) 162 | -11/Scrapyard | Entered Materials 274 | -10/Materials | Core integrity fell below 50% 310 | -10/Materials | Lost 6 parts (2p2n2w) 343 | -10/Materials | Build established: Mutant 362 | -10/Materials | Lost 4 parts (1p2n1w) 370 | -10/Materials | Core integrity fell below 20% 381 | -10/Materials | Destroyed by G-34 Mercenary with Small Laser Last Messages --------------- 00289_ Triggered EMP Trap. 00289_ A bubble of electromagnetic force engulfs the area. 00289_ Door malfunctions. 00289_ U-05 Engineer destroyed. 00293_ Acquired Lgt. Ion Engine. 00294_ Acquired 10 matter. 00295_ K-01 Serf collects debris. 00296_ Acquired Terrain Scan Processor. 00299_ K-01 Serf collects debris. 00312_ Acquired Terrain Scanner. 00316_ Lgt. Assault Rifle destroyed. 00320_ Com. Wheel destroyed. 00322_ Acquired Lgt. Treads. 00324_ Slammed into G-34 Mercenary. 00327_ Lgt. Ion Engine destroyed. 00329_ R-06 Scavenger collects Terrain Scanner. 00331_ Wheel destroyed. 00346_ Slammed into G-34 Mercenary. 00367_ Acquired Hammer. 00378_ Lgt. Treads destroyed. Map ----- +----------------------------------------------------+ | ?????????????????????????????????????????????????? | | ?????????????????????????????????????????????????? | | ?????????????????????????????????????????????????? | | ?????????????????????????????????????????????????? | | ???????? ????????????????????????????????????????? | | ????????????????#????????????????????????????????? | | ???????? ????????????????????????????????????????? | | ????????????????? ? ?????????????????????????????? | | ????#????????????????????????????????????????????? | | ????????????? ??? ???????????????????????????????? | | ????#????######?? ??????? ??????????? ???????????? | | ???#???#?# ?????????????????????? #???????????? | | ????? ?? # ????????????????????? #???????????? | | ???????? # ? ???????? ?????????? #???????????? | | ?????????/ #???? #?? ??????????? #???????????? | | ??#? ????# #?#?# #?????????????# ##??????????? | | ??#??????# #####/####????###### #??????????? | | ?????? ? # # % ###### = #??????????? | | ????#????# # %/ = % r +??????????? | | ???#??#??# %# ###### #??????????? | | ?????????# %# % # # ## ! #??????????? | | ????#????#=% % # # ########??????????? | | ????? #??# # # # % /% #??????????? | | ????#??### =# # g/ %#%""" #??????????? | | ??######## # # g# #%""" #??????????? | | ??# # # # @g## ## """ #??????????? | | ??# """ # ########## !! ## ## """ #??????#???? | | ??# "Y" # #??#?????#! ! ## ## """ #??????????? | | ??# + #????????#!!! ## ## #??????????? | | ??# # #??????#?####### ## """ #??????????? | | ??# # #???????##?##??# ## """ #??????????? | | ??######## ####??###??????# ## """ #??????????? | | ?## #?????#????????# ?# """ #??????????? | | ??# #??????????????# ?# """ #??????????? | | ??# ##?????????????? ?# ??#??????????? | | ??# ########??????#????#??? ?###???????????????? | | ??# #?????????????????????? ???????????????????? | | ??# #?????????????????????? ???????????????????? | | ??# #??#????#?????????????#????????????????????? | | ??#####??????????????????????????????????????????? | | ????????#???#????????????????????????????????????? | | ???????????????????????#?????????????????????????? | | ?????????????????????????????????????????????????? | | ?????????????????????????????????????????????????? | | ?????????????????????????????????????????????????? | | | | | | | | | | | +----------------------------------------------------+ Best States ------------- Heat Dissipation 25 Energy Generation 10 Energy Capacity 125 Matter Stores 300 Matter Capacity 300 Sight Range 16 Terrain Scan Range 16 Terrain Scan Density 10 Evasion (%) 55 Recoil Reduction 1 Item Schematics ----------------- None Robot Schematics ------------------ None Fabricated ------------ Nothing Alien Tech Used ----------------- None Achievements -------------- None Challenges ------------ None Game ------ Seed FrostDeliveryJammer Manual? 0 Play Time 00:09:00 Cumulative 173.6 hours Start 2022.03.20 @ 19:01:11 End 2022.03.20 @ 19:06:35 Sessions 1 Manual Loads 0 Difficulty Rogue Special Mode None Game No. 121 Rogue 121 Adventurer 0 Explorer 0 Win Type - Total 0 Types 0/0/0/0/0/0/0/0/0 Lore% 40 Gallery% 56 Achievement% 43 Wizard Run 0 Options --------- ASCII 0 Keyboard 0 Movement Numpad Keybinds 0 Fullscreen 1 Font 14/Terminus Map View 72x54 Tactical HUD 1 Map Filters NONE Filters NONE Steam 1 RUN: fd29eca5-95d9-4bb4-9317-b3a3a23d948b